fUSD/lending_fUSD_20240425
["ID","MTS","AMOUNT","RATE_DAILY","PERIOD"]
[323501478,1714055440520,-508.19,0.00011796,2]
[323501479,1714055440529,-730.87,0.00011796,2]
[323501480,1714055440539,-224.7,0.00011796,2]
[323501481,1714055440548,-500.0,0.00011796,2]
[323501482,1714055440557,-500.0,0.00011796,2]
[323501483,1714055440567,-500.0,0.00011796,2]
[323501484,1714055440576,-597.02,0.00011796,2]
[323501485,1714055440585,-500.0,0.00011796,2]
[323501486,1714055440595,-1106.22,0.00011797,2]
[323501487,1714055440604,-500.0,0.00011797,2]
[323501488,1714055440614,-500.0,0.00011797,2]
[323501489,1714055440625,-500.0,0.00011797,2]
[323501490,1714055440634,-589.87,0.00011797,2]
[323501491,1714055440644,-429.5,0.00011797,2]
[323501492,1714055440654,-500.0,0.00011797,2]
[323501493,1714055440664,-500.0,0.00011797,2]
[323501494,1714055440674,-571.88874838,0.00011797,2]
[323501495,1714055440683,-592.72672559,0.00011797,2]
[323501496,1714055440694,-653.78,0.00011797,2]
[323501497,1714055440705,-500.0,0.00011797,2]
[323501498,1714055440714,-500.0,0.00011797,2]
[323501499,1714055440723,-500.0,0.00011797,2]
[323501500,1714055440732,-500.0,0.00011797,2]
[323501501,1714055440741,-949.75,0.00011797,2]
[323501502,1714055440750,-500.0,0.00011797,2]
[323501503,1714055440760,-1067.08,0.00011797,2]
[323501504,1714055440769,-500.0,0.00011797,2]
[323501505,1714055440778,-500.0,0.00011797,2]
[323501506,1714055440787,-523.52,0.00011797,2]
[323501507,1714055440797,-500.0,0.00011797,2]
[323501508,1714055440806,-500.0,0.00011797,2]
[323501509,1714055440815,-500.0,0.00011797,2]
[323501510,1714055440824,-540.16,0.00011797,2]
[323501511,1714055440834,-500.0,0.00011797,2]
[323501512,1714055440844,-1239.51,0.00011797,2]
[323501513,1714055440853,-500.0,0.00011797,2]
[323501514,1714055440862,-500.0,0.00011797,2]
[323501515,1714055440871,-500.0,0.00011797,2]
[323501516,1714055440881,-500.0,0.00011797,2]
[323501517,1714055440890,-500.0,0.00011797,2]
[323501518,1714055440899,-500.0,0.00011797,2]
[323501519,1714055440908,-253.22,0.00011797,2]
[323501520,1714055440918,-500.0,0.00011797,2]
[323501521,1714055440927,-500.0,0.00011797,2]
[323501522,1714055440938,-500.0,0.00011797,2]
[323501523,1714055440947,-170.04,0.00011797,2]
[323501524,1714055440956,-521.98,0.00011797,2]
[323501525,1714055440965,-500.0,0.00011797,2]
[323501526,1714055440974,-306.54,0.00011797,2]
[323501527,1714055440983,-500.0,0.00011797,2]
[323501528,1714055440992,-847.36,0.00011797,2]
[323501529,1714055441002,-708.38,0.00011797,2]
[323501530,1714055441011,-636.84302979,0.00011797,2]
[323501531,1714055441020,-500.0,0.00011797,2]
[323501532,1714055441029,-500.0,0.00011797,2]
[323501533,1714055441038,-442.28537935,0.00011797,2]
[323501534,1714055441047,-271.48536199,0.00011797,2]
[323501535,1714055441057,-500.0,0.00011797,2]
[323501536,1714055441066,-500.0,0.00011797,2]
[323501537,1714055441080,-500.0,0.00011797,2]
[323501538,1714055441089,-346.49948837,0.00011797,2]
[323501539,1714055441098,-587.80462065,0.00011797,2]
[323501540,1714055441107,-500.0,0.00011797,2]
[323501541,1714055441116,-500.0,0.00011797,2]
[323501542,1714055441125,-500.0,0.00011797,2]
[323501543,1714055441135,-500.0,0.00011797,2]
[323501544,1714055441143,-500.0,0.00011797,2]
[323501545,1714055441152,-945.52,0.00011797,2]
[323501546,1714055441161,-503.02811361,0.00011797,2]
[323501547,1714055441170,-500.0,0.00011797,2]
[323501548,1714055441179,-203.37329626,0.00011797,2]
[323501549,1714055441190,-500.0,0.00011797,2]
[323501550,1714055441199,-500.0,0.00011797,2]
[323501551,1714055441208,-500.0,0.00011797,2]
[323501552,1714055441220,-500.0,0.00011797,2]
[323501553,1714055441230,-527.96,0.00011797,2]
[323501554,1714055441239,-500.0,0.00011797,2]
[323501555,1714055441248,-500.0,0.00011797,2]
[323501556,1714055441257,-500.0,0.00011797,2]
[323501557,1714055441266,-500.0,0.00011797,2]
[323501558,1714055441275,-500.0,0.00011797,2]
[323501559,1714055441285,-501.48925749,0.00011797,2]
[323501560,1714055441294,-500.0,0.00011797,2]
[323501561,1714055441304,-500.0,0.00011797,2]
[323501562,1714055441314,-500.0,0.00011797,2]
[323501563,1714055441323,-500.0,0.00011797,2]
[323501564,1714055441333,-500.0,0.00011797,2]
[323501565,1714055441342,-500.0,0.00011797,2]
[323501566,1714055441352,-500.0,0.00011797,2]
[323501567,1714055441362,-500.0,0.00011797,2]
[323501568,1714055441373,-500.0,0.00011797,2]
[323501569,1714055441382,-500.0,0.00011797,2]
[323501570,1714055441392,-500.0,0.00011797,2]
[323501571,1714055441401,-500.0,0.00011797,2]
[323501572,1714055441410,-500.0,0.00011797,2]
[323501573,1714055441420,-500.0,0.00011797,2]
[323501574,1714055441430,-500.0,0.00011797,2]
[323501575,1714055441442,-500.0,0.00011797,2]
[323501576,1714055441451,-501.25950545,0.00011797,2]
[323501577,1714055441460,-758.01,0.00011797,2]
[323501578,1714055441470,-500.0,0.00011797,2]
[323501579,1714055441479,-500.0,0.00011797,2]
[323501580,1714055441489,-500.0,0.00011797,2]
[323501581,1714055441498,-500.0,0.00011797,2]
[323501582,1714055441507,-501.4607061,0.00011797,2]
[323501583,1714055441516,-314.16449104,0.00011797,2]
[323501584,1714055441526,-500.0,0.00011797,2]
[323501585,1714055441535,-500.0,0.00011797,2]
[323501586,1714055441545,-500.0,0.00011797,2]
[323501587,1714055441554,-500.0,0.00011797,2]
[323501588,1714055441564,-500.0,0.00011797,2]
[323501589,1714055441574,-500.0,0.00011797,2]
[323501590,1714055441584,-428.68126217,0.00011797,2]
[323501591,1714055441593,-500.0,0.00011797,2]
[323501592,1714055441607,-500.0,0.00011797,2]
[323501593,1714055441616,-500.0,0.00011797,2]
[323501594,1714055441625,-500.0,0.00011797,2]
[323501595,1714055441634,-500.0,0.00011797,2]
[323501596,1714055441645,-500.0,0.00011797,2]
[323501597,1714055441654,-502.12792636,0.00011797,2]
[323501598,1714055441663,-500.0,0.00011797,2]
[323501599,1714055441672,-500.0,0.00011797,2]
[323501600,1714055441681,-500.0,0.00011797,2]
[323501601,1714055441693,-150.0,0.00011797,2]
[323501602,1714055441703,-500.0,0.00011797,2]
[323501603,1714055441712,-500.0,0.00011797,2]
[323501604,1714055441722,-500.0,0.00011797,2]
[323501605,1714055441732,-500.0,0.00011797,2]
[323501606,1714055441742,-500.0,0.00011797,2]
[323501607,1714055441970,-500.0,0.00011797,2]
[323501608,1714055441981,-500.0,0.00011797,2]
[323501609,1714055441991,-500.0,0.00011797,2]
[323501610,1714055442001,-500.0,0.00011797,2]
[323501611,1714055442010,-500.0,0.00011797,2]
[323501612,1714055442020,-500.0,0.00011797,2]
[323501613,1714055442029,-504.54929726,0.00011797,2]
[323501614,1714055442039,-500.0,0.00011797,2]
[323501615,1714055442048,-500.0,0.00011797,2]
[323501616,1714055442058,-500.0,0.00011797,2]
[323501617,1714055442067,-500.0,0.00011797,2]
[323501618,1714055442077,-500.0,0.00011797,2]
[323501619,1714055442086,-500.0,0.00011797,2]
[323501620,1714055442096,-500.0,0.00011797,2]
[323501621,1714055442105,-500.0,0.00011797,2]
[323501622,1714055442114,-500.0,0.00011797,2]
[323501623,1714055442124,-500.0,0.00011797,2]
[323501624,1714055442134,-500.0,0.00011797,2]
[323501625,1714055442144,-523.45,0.00011797,2]
[323501626,1714055442153,-500.0,0.00011797,2]
[323501627,1714055442162,-500.0,0.00011797,2]
[323501628,1714055442171,-500.0,0.00011797,2]
[323501629,1714055442181,-500.0,0.00011797,2]
[323501630,1714055442194,-500.0,0.00011797,2]
[323501631,1714055442203,-500.0,0.00011797,2]
[323501632,1714055442212,-547.35956975,0.00011797,2]
[323501633,1714055442222,-500.0,0.00011797,2]
[323501634,1714055442231,-500.0,0.00011797,2]
[323501635,1714055442241,-500.0,0.00011797,2]
[323501636,1714055442250,-500.0,0.00011797,2]
[323501637,1714055442260,-500.0,0.00011797,2]
[323501638,1714055442269,-500.0,0.00011797,2]
[323501639,1714055442278,-500.0,0.00011797,2]
[323501640,1714055442287,-500.0,0.00011797,2]
[323501641,1714055442297,-609.32811182,0.00011797,2]
[323501642,1714055442307,-500.0,0.00011797,2]
[323501643,1714055442316,-500.0,0.00011797,2]
[323501644,1714055442325,-500.0,0.00011797,2]
[323501646,1714055442334,-500.0,0.00011797,2]
[323501647,1714055442344,-500.0,0.00011797,2]
[323501649,1714055442354,-500.0,0.00011797,2]
[323501651,1714055442363,-500.0,0.00011797,2]
[323501653,1714055442372,-503.33772581,0.00011797,2]
[323501654,1714055442382,-500.0,0.00011797,2]
[323501655,1714055442391,-500.0,0.00011797,2]
[323501657,1714055442400,-500.0,0.00011797,2]
[323501658,1714055442409,-500.0,0.00011797,2]
[323501659,1714055442419,-500.0,0.00011797,2]
[323501660,1714055442428,-493.11235271,0.00011797,2]
[323501661,1714055442440,-500.0,0.00011797,2]
[323501663,1714055442449,-500.0,0.00011797,2]
[323501665,1714055442458,-500.0,0.00011797,2]
[323501667,1714055442468,-502.4300518,0.00011797,2]
[323501669,1714055442477,-500.0,0.00011797,2]
[323501671,1714055442486,-500.73142562,0.00011797,2]
[323501672,1714055442495,-500.0,0.00011797,2]
[323501673,1714055442504,-500.0,0.00011797,2]
[323501674,1714055442514,-607.02,0.00011797,2]
[323501676,1714055442523,-513.11840544,0.00011797,2]
[323501678,1714055442532,-500.0,0.00011797,2]
[323501680,1714055442541,-500.0,0.00011797,2]
[323501682,1714055442550,-500.0,0.00011797,2]
[323501685,1714055442559,-500.0,0.00011797,2]
[323501686,1714055442569,-500.0,0.00011797,2]
[323501687,1714055442578,-500.0,0.00011797,2]
[323501688,1714055442587,-605.55,0.00011797,2]
[323501689,1714055442597,-151.43509639,0.00011797,2]
[323501690,1714055442611,-500.0,0.00011797,2]
[323501691,1714055442620,-214.4,0.00011797,2]
[323501692,1714055442630,-500.0,0.00011797,2]
[323501693,1714055442639,-541.16,0.00011797,2]
[323501694,1714055442649,-500.0,0.00011797,2]
[323501695,1714055442657,-500.0,0.00011797,2]
[323501696,1714055442667,-500.0,0.00011797,2]
[323501697,1714055442676,-500.0,0.00011797,2]
[323501698,1714055442688,-605.63,0.00011797,2]
[323501699,1714055442699,-500.0,0.00011797,2]
[323501700,1714055442708,-500.0,0.00011797,2]
[323501701,1714055442717,-500.0,0.00011797,2]
[323501702,1714055442727,-1196.03,0.00011797,2]
[323501703,1714055442737,-500.0,0.00011797,2]
[323501704,1714055442747,-500.0,0.00011797,2]
[323501705,1714055442756,-500.10973867,0.00011797,2]
[323501706,1714055442765,-500.0,0.00011797,2]
[323501707,1714055442775,-500.0,0.00011797,2]
[323501708,1714055442793,-500.0,0.00011797,2]
[323501709,1714055442806,-685.65,0.00011797,2]
[323501710,1714055442816,-500.33027189,0.00011797,2]
[323501711,1714055442826,-500.0,0.00011797,2]
[323501712,1714055442835,-500.0,0.00011797,2]
[323501713,1714055442845,-500.0,0.00011797,2]
[323501714,1714055442854,-500.0,0.00011797,2]
[323501715,1714055442864,-500.0,0.00011797,2]
[323501716,1714055442874,-648.68,0.00011797,2]
[323501717,1714055442883,-539.32883583,0.00011797,2]
[323501718,1714055442893,-500.0,0.00011797,2]
[323501719,1714055442902,-500.0,0.00011797,2]
[323501720,1714055442911,-500.0,0.00011797,2]
[323501721,1714055442921,-500.0,0.00011797,2]
[323501722,1714055442930,-500.0,0.00011797,2]
[323501723,1714055442941,-503.84707921,0.00011797,2]
[323501724,1714055442950,-24675.43,0.00011797,2]
[323501725,1714055442960,-500.0,0.00011797,2]
[323501726,1714055442970,-500.7748738,0.00011797,2]
[323501727,1714055442979,-500.0,0.00011797,2]
[323501728,1714055442989,-500.0,0.00011797,2]
[323501729,1714055442998,-500.0,0.00011797,2]
[323501730,1714055443007,-500.0,0.00011797,2]
[323501731,1714055443017,-500.0,0.00011797,2]
[323501732,1714055443027,-500.0,0.00011797,2]
[323501733,1714055443037,-500.0,0.00011797,2]
[323501734,1714055443047,-500.0,0.00011797,2]
[323501735,1714055443056,-500.0,0.00011797,2]
[323501736,1714055443066,-500.0,0.00011797,2]
[323501737,1714055443076,-500.0,0.00011797,2]
[323501738,1714055443085,-500.0,0.00011797,2]
[323501739,1714055443095,-500.0,0.00011797,2]
[323501740,1714055443104,-276.87156345,0.00011797,2]
[323501741,1714055443114,-500.0,0.00011797,2]
[323501742,1714055443123,-500.0,0.00011797,2]
[323501743,1714055443133,-500.0,0.00011797,2]
[323501744,1714055443143,-623.98,0.00011797,2]
[323501745,1714055443153,-500.0,0.00011797,2]
[323501746,1714055443163,-500.0,0.00011797,2]
[323501747,1714055443173,-996.12,0.00011797,2]
[323501748,1714055443182,-500.0,0.00011797,2]
[323501749,1714055443194,-689.36,0.00011797,2]
[323501750,1714055443204,-500.0,0.00011797,2]
[323501751,1714055443213,-500.0,0.00011797,2]
[323501752,1714055443223,-500.0,0.00011797,2]
[323501753,1714055443232,-500.0,0.00011797,2]
[323501754,1714055443242,-3321.09,0.00011797,2]
[323501755,1714055443252,-500.0,0.00011797,2]
[323501756,1714055443261,-500.0,0.00011797,2]
[323501757,1714055443271,-500.0,0.00011797,2]
[323501758,1714055443280,-500.0,0.00011797,2]
[323501759,1714055443290,-500.0,0.00011797,2]
[323501760,1714055443299,-500.0,0.00011797,2]
[323501761,1714055443312,-500.0,0.00011797,2]
[323501762,1714055443322,-500.0,0.00011797,2]
[323501763,1714055443331,-500.0,0.00011797,2]
[323501764,1714055443341,-701.49,0.00011797,2]
[323501765,1714055443351,-1091.83,0.00011797,2]
[323501766,1714055443361,-587.58,0.00011797,2]
[323501767,1714055443371,-500.0,0.00011797,2]
[323501768,1714055443380,-500.0,0.00011797,2]
[323501769,1714055443389,-500.0,0.00011797,2]
[323501770,1714055443399,-1034.67,0.00011797,2]
[323501771,1714055443408,-500.0,0.00011797,2]
[323501772,1714055443418,-2048.11,0.00011797,2]
[323501773,1714055443427,-500.0,0.00011797,2]
[323501774,1714055443436,-500.0,0.00011797,2]
[323501775,1714055443447,-1883.9,0.00011797,2]
[323501776,1714055443456,-2634.66,0.00011797,2]
[323501777,1714055443466,-500.0,0.00011797,2]
[323501778,1714055443475,-500.0,0.00011797,2]
[323501779,1714055443485,-500.0,0.00011797,2]
[323501780,1714055443494,-500.0,0.00011797,2]
[323501781,1714055443503,-500.0,0.00011797,2]
[323501782,1714055443513,-500.0,0.00011797,2]
[323501783,1714055443522,-500.0,0.00011797,2]
[323501784,1714055443532,-500.0,0.00011797,2]
[323501785,1714055443541,-500.0,0.00011797,2]
[323501786,1714055443550,-1445.86,0.00011797,2]
[323501787,1714055443561,-500.0,0.00011797,2]
[323501788,1714055443570,-500.0,0.00011797,2]
[323501789,1714055443579,-500.0,0.00011797,2]
[323501790,1714055443588,-500.0,0.00011797,2]
[323501791,1714055443599,-634.66,0.00011797,2]
[323501792,1714055443608,-528.99,0.00011797,2]
[323501793,1714055443620,-501.0,0.00011797,2]
[323501794,1714055443630,-500.0,0.00011797,2]
[323501795,1714055443638,-614.22,0.00011797,2]
[323501796,1714055443648,-500.0,0.00011797,2]
[323501797,1714055443657,-500.0,0.00011797,2]
[323501798,1714055443667,-870.58,0.00011797,2]
[323501799,1714055443676,-500.0,0.00011797,2]
[323501800,1714055443686,-500.0,0.00011797,2]
[323501801,1714055443697,-1632.89,0.00011797,2]
[323501802,1714055443706,-500.0,0.00011797,2]
[323501803,1714055443715,-647.34,0.00011797,2]
[323501804,1714055443724,-500.0,0.00011797,2]
[323501805,1714055443734,-730.3,0.00011797,2]
[323501806,1714055443742,-500.0,0.00011797,2]
[323501807,1714055443751,-500.0,0.00011797,2]
[323501808,1714055443760,-500.0,0.00011799,2]
[323501809,1714055443770,-500.0,0.00011799,2]
[323501810,1714055443779,-500.0,0.00011799,2]
[323501811,1714055443789,-500.0,0.00011799,2]
[323501812,1714055443799,-500.0,0.00011799,2]
[323501813,1714055443809,-500.0,0.00011799,2]
[323501814,1714055443819,-500.0,0.00011799,2]
[323501815,1714055443829,-500.0,0.00011799,2]
[323501816,1714055443838,-500.0,0.00011799,2]
[323501817,1714055443848,-500.0,0.00011799,2]
[323501818,1714055443858,-500.0,0.00011799,2]
[323501819,1714055443868,-500.0,0.00011799,2]
[323501820,1714055443877,-500.0,0.00011799,2]
[323501821,1714055443886,-297.15972543,0.00011799,2]
[323501822,1714055443896,-500.0,0.00011799,2]
[323501823,1714055443905,-500.0,0.00011799,2]
[323501824,1714055443914,-500.0,0.00011799,2]
[323501825,1714055443923,-500.0,0.00011799,2]
[323501826,1714055443933,-500.0,0.00011799,2]
[323501827,1714055443944,-500.0,0.00011799,2]
[323501828,1714055443953,-500.0,0.00011799,2]
[323501829,1714055443962,-500.0,0.00011799,2]
[323501830,1714055443971,-500.0,0.00011799,2]
[323501831,1714055443980,-500.0,0.00011799,2]
[323501832,1714055443989,-500.0,0.00011799,2]
[323501833,1714055443998,-500.0,0.00011799,2]
[323501834,1714055444008,-535.45273167,0.00011799,2]
[323501835,1714055444018,-500.0,0.00011799,2]
[323501836,1714055444027,-500.0,0.00011799,2]
[323501837,1714055444037,-500.0,0.00011799,2]
[323501838,1714055444046,-500.0,0.00011799,2]
[323501839,1714055444056,-500.0,0.00011799,2]
[323501840,1714055444065,-500.0,0.00011799,2]
[323501841,1714055444074,-500.0,0.00011799,2]
[323501842,1714055444084,-500.0,0.00011799,2]
[323501843,1714055444093,-500.0,0.00011799,2]
[323501844,1714055444102,-500.0,0.00011799,2]
[323501845,1714055444111,-500.41,0.00011799,2]
[323501846,1714055444121,-500.0,0.00011799,2]
[323501847,1714055444130,-598.97,0.000119,2]
[323501848,1714055444140,-200.01599054,0.000119,2]
[323501849,1714055444149,-19804.63758621,0.000119,2]
[323501850,1714055444159,-215.32586158,0.000119,2]
[323501851,1714055444168,-1175.79078513,0.000119,2]
[323501852,1714055444178,-2106.64410573,0.000119,2]
[323501853,1714055444188,-708.56640775,0.000119,2]
[323501854,1714055444199,-967.68805592,0.000119,2]
[323501855,1714055444209,-153.05,0.00011918,2]
[323501856,1714055444218,-1008.0156,0.00011971,2]
[323501857,1714055444230,-151.45,0.00011989,2]
[323501858,1714055444239,-69521.39649141,0.00011992,2]
[323501859,1714055444249,-156.23288617,0.00011998,2]
[323501860,1714055444259,-325.78301861,0.00011998,2]
[323501861,1714055444268,-1777.02433335,0.00011998,2]
[323501862,1714055444277,-1281.14146774,0.00011998,2]
[323501863,1714055444287,-236.80231061,0.00011998,2]
[323501864,1714055444296,-2180.17381365,0.00011998,2]
[323501865,1714055444306,-1164.53228305,0.00011998,2]
[323501866,1714055444317,-3395.8,0.00011999,2]
[323501867,1714055444326,-2402.48756872,0.00011999,2]
[323501868,1714055444335,-3070.60191523,0.00012,2]
[323501869,1714055444346,-409.12808028,0.00012,2]
[323501870,1714055444356,-6713.82708292,0.00012,2]
[323501871,1714055444378,-3874.51167318,0.00012,2]
[323501872,1714055444390,-596.2957,0.00012,2]
[323501873,1714055444426,-991.10052887,0.00012,2]
[323501874,1714055444440,-265.34402344,0.00012,2]
[323501875,1714055444450,-21809.33825997,0.00012,2]
[323501876,1714055444463,-2558.53179684,0.00012,2]
[323501877,1714055444489,-1073.10033886,0.00012,2]
[323501878,1714055444507,-448.48874592,0.00012,2]
[323501879,1714055444518,-765.40295299,0.00012,2]
[323501880,1714055444529,-671.75507656,0.00012,2]
[323501881,1714055445105,-500.0,0.00011796,2]
[323501882,1714055445114,-500.0,0.00011797,2]
[323501883,1714055445125,-11260.56224255,0.00012,2]
[323501884,1714055445136,-390.0006444,0.00012,2]
[323501885,1714055445182,-938075.62584958,0.00012,2]
[323501890,1714055447334,-282757.65617916,0.00012,2]
[323501891,1714055447739,-0.00154291,0.00012,2]
[323501892,1714055447751,-881.296,0.00012,2]
[323501893,1714055447763,-15842.28674779,0.00012,2]
[323501894,1714055448359,-24.60289558,0.00012,2]
[323501895,1714055448424,-750.0,0.00012,2]
[323501896,1714055448436,-4328.499685,0.00012,2]
[323501897,1714055448456,-1997.13,0.00012,2]
[323501898,1714055448713,-127504.27304621,0.00012,2]
[323501899,1714055448728,-319299.99999997,0.00012,2]
[323501900,1714055448741,-27725.61769693,0.00012,2]
[323501901,1714055448753,-18263.35539913,0.00012,2]
[323501902,1714055448795,-908.51,0.00012,2]
[323501903,1714055448877,-438.23211011,0.00011999,2]
[323501904,1714055448890,-631.45603446,0.00011999,2]
[323501905,1714055448900,-4383.54916896,0.00012,2]
[323501906,1714055448913,-327.26557709,0.00012,2]
[323501907,1714055712934,15226.21,8e-05,2]
[323501908,1714055939199,-706.66913894,9.954e-05,2]
[323501909,1714055939221,-393.33086106,9.954e-05,2]
[323501910,1714055985559,-539.40266579,9.95e-05,2]
[323501911,1714055985581,-161.55154401,9.951e-05,2]
[323501912,1714055985602,-3081.50969513,9.951e-05,2]
[323501913,1714055985623,-155.0,9.952e-05,2]
[323501914,1714055985643,-62.53609507,9.952e-05,2]
[323501915,1714055993393,-1784.63488396,9.949e-05,2]
[323501916,1714055993414,-2015.36511604,9.951e-05,2]
[323501949,1714056381958,390.23,8.219e-05,2]
[323501954,1714056556268,-192.79472849,8.936e-05,2]
[323501955,1714056556301,-305.39391058,8.937e-05,2]
[323501956,1714056556321,-4132.26064625,8.937e-05,2]
[323501957,1714056556343,-706.66913894,8.938e-05,2]
[323501958,1714056556366,-4584.3685979,8.939e-05,2]
[323501959,1714056556386,-35264.29285231,8.939e-05,2]
[323501960,1714056556406,-5547.56885349,8.94e-05,2]
[323501961,1714056556425,-325.78301861,8.941e-05,2]
[323501962,1714056556443,-1777.02433335,8.941e-05,2]
[323501963,1714056556463,-621.73302935,8.942e-05,2]
[323501964,1714056556482,-4730.25914393,8.942e-05,2]
[323501965,1714056556501,-157.28716472,8.942e-05,2]
[323501966,1714056556521,-150.0,8.943e-05,2]
[323501967,1714056556540,-538.116345,8.955e-05,2]
[323501968,1714056556559,-150.0,8.959e-05,2]
[323501969,1714056556577,-871.83841952,8.997e-05,2]
[323501970,1714056556600,-1001.50734669,9e-05,2]
[323501971,1714056556619,-507.71,9.519e-05,2]
[323501972,1714056556639,-621.52,9.645e-05,2]
[323501973,1714056556658,-1864.89,9.67e-05,2]
[323501974,1714056556679,-210.0,9.837e-05,2]
[323501975,1714056556698,-23357.54376703,9.981e-05,2]
[323501976,1714056556718,-824.83128352,0.0001,2]
[323501977,1714056556740,-3387.84458594,0.0001,2]
[323501978,1714056556760,-787.34412016,0.0001,2]
[323501979,1714056556779,-2577.28,0.00010351,2]
[323501980,1714056556800,-177.06572435,0.00010454,2]
[323501994,1714056631713,-213.16427565,0.00010454,2]
[323501995,1714056631723,-150.0,0.000108,2]
[323501996,1714056631732,-150.0,0.000108,2]
[323501997,1714056631742,-257.0,0.00010821,2]
[323501998,1714056631752,-621.52,0.00010851,2]
[323501999,1714056631762,-150.0,0.00010863,2]
[323502000,1714056631774,-1836.86572435,0.00010899,2]
[323502022,1714056632293,-287.87646049,0.00010899,2]
[323502464,1714056637826,-237.7,0.00010463,2]
[323502465,1714056637836,-217.78491516,0.00010899,2]
[323502466,1714056637845,-1200.0,0.000109,3]
[323502467,1714056637854,-150.0,0.00010926,2]
[323502468,1714056637863,-2000.0,0.00010959,3]
[323502469,1714056637872,-158.03479764,0.00010998,2]
[323502470,1714056637881,-455.1790143,0.00010998,2]
[323502471,1714056637891,-500.0,0.00010999,2]
[323502472,1714056637900,-500.0,0.00010999,2]
[323502473,1714056637910,-500.0,0.00010999,2]
[323502474,1714056637919,-346.29635697,0.00010999,2]
[323502475,1714056637932,-500.0,0.00010999,2]
[323502476,1714056637941,-500.0,0.00010999,2]
[323502477,1714056637950,-500.0,0.00010999,2]
[323502478,1714056637960,-177.98174877,0.00010999,2]
[323502479,1714056637969,-205.19,0.00010999,2]
[323502480,1714056637978,-500.0,0.00010999,2]
[323502481,1714056637988,-550.02003314,0.00010999,2]
[323502482,1714056637998,-500.0,0.00010999,2]
[323502483,1714056638012,-500.0,0.00010999,2]
[323502484,1714056638021,-303.51051829,0.00010999,2]
[323502485,1714056638034,-196.48948171,0.00010999,2]
[323502486,1714056638043,-372.64,0.00010999,2]
[323502487,1714056638053,-500.0,0.00010999,2]
[323502488,1714056638062,-549.56,0.00010999,2]
[323502489,1714056638072,-500.0,0.00010999,2]
[323502490,1714056638084,-260.71,0.00010999,2]
[323502491,1714056638094,-500.0,0.00010999,2]
[323502492,1714056638103,-500.0,0.00010999,2]
[323502493,1714056638113,-500.0,0.00010999,2]
[323502494,1714056638122,-500.0,0.00010999,2]
[323502495,1714056638131,-500.0,0.00010999,2]
[323502496,1714056638418,-500.0,0.00010999,2]
[323502497,1714056638429,-500.0,0.00010999,2]
[323502498,1714056638438,-500.0,0.00010999,2]
[323502499,1714056638448,-500.0,0.00010999,2]
[323502500,1714056638457,-500.0,0.00010999,2]
[323502501,1714056638466,-500.0,0.00010999,2]
[323502503,1714056638476,-500.0,0.00010999,2]
[323502505,1714056638485,-500.0,0.00010999,2]
[323502507,1714056638494,-500.0,0.00010999,2]
[323502509,1714056638505,-500.0,0.00010999,2]
[323502511,1714056638514,-581.36,0.00010999,2]
[323502513,1714056638523,-500.0,0.00010999,2]
[323502515,1714056638533,-500.0,0.00010999,2]